Cogmind - Beta 15 @@@ ROGUE MODE // 2025.05.17 @ 21:04:01 Player: Player Result: Destroyed by Y-64 Sentinel with KE Penetrator Performance ------------- Evolutions (6) 3000 Regions Visited (12) 2400 Robots Destroyed (108) 540 Value Destroyed (4485) 4485 Prototype IDs (2) 40 Alien Tech Used (0) 0 Bonus (1253) 1253 TOTAL SCORE: 11718 Bonus ------- High Alert Combat Kills 430 Follower Combat Kills 843 Friendly Fire -20 Cogmind --------- Core Integrity 0/1150 Matter 282/300 Energy 100/100 System Corruption 0% Temperature Cool (0) Movement Core (50) Location -4/Extension Parts ------- > --- POWER (1) -------- (None) > --- PROPULSION (6) --- (None) > --- UTILITY (9) ------ Advanced Visual Processing Unit > --- WEAPON (3) ------- (None) > --- INVENTORY (5) ---- Improved Weapon Cycler Damper Plating Peak State ------------ > --- POWER ------------ Light Nuclear Core > --- PROPULSION ------- Medium Treads Medium Treads Improved Medium Treads Armored Medium Treads Flexi-carbon Leg > --- UTILITY ---------- Huge Storage Unit Advanced Visual Processing Unit Improved Signal Interpreter Advanced Targeting Computer Core Analyzer Improved Medium Armor Plating Improved Medium Armor Plating Improved Medium Armor Plating > --- WEAPON ----------- Slug Cannon Magnetic Acceleration Cannon Hypervelocity Gauss Cannon > --- INVENTORY -------- Large Matter Pod Improved Terrain Scanner Targeting Computer Improved Target Analyzer Recoil Stabilizer Improved Weapon Cycler Transmission Jammer Improved Medium Armor Plating Reactive Plating Reactive Plating Damper Plating Advanced Thermal Shield Shock Absorption System Mini Drone Bay Gauss Rifle Phasing Sabre [Rating: 76] Favorites ----------- Power Light Nuclear Core Engine Deuterium Engine Power Core Light Nuclear Core Propulsion Light Treads Treads Light Treads Leg Flexi-carbon Leg Wheel Compact Wheel Hover Unit Backup Propulsion III Utility Advanced Targeting Computer Device Improved Sensor Array Storage High-capacity Storage Unit Processor Advanced Targeting Computer Protection Improved Utility Shielding Weapon Magnetic Acceleration Cannon Energy Gun Backup Laser III Ballistic Gun Gauss Rifle Ballistic Cannon Magnetic Acceleration Cannon Launcher Missile Launcher Impact Weapon Power Maul Slashing Weapon Phasing Sabre Build | -11 -10 -9 -8 -7 -6 -6 -6 -5 -5 -5 -4 -4 ------- Run | Yrd Mat Mat Mat Fac Fac Was Fac Fac Upp Upp Fac Ext Slots Evolved 12 | . . 2 2 2 2 . . 2 . . 2 . Power . | . . . . . . . . . . . . . Propulsion 4 | . . 1 . . 1 . . 1 . . 1 . Utility 7 | . . 1 1 2 1 . . 1 . . 1 . Weapon 1 | . . . 1 . . . . . . . . . Parts Attached 112 | 8 7 6 20 12 2 11 8 19 8 . 4 7 Power 14 | 1 3 . 2 . . 1 3 2 . . . 2 Engine 5 | 1 2 . 1 . . . 1 . . . . . Core 9 | . 1 . 1 . . 1 2 2 . . . 2 Reactor . | . . . . . . . . . . . . . Propulsion 24 | 2 1 1 4 3 1 1 1 6 3 . 1 . Treads 20 | 2 1 1 4 3 1 1 1 4 2 . . . Leg 1 | . . . . . . . . . 1 . . . Wheel 3 | . . . . . . . . 2 . . 1 . Hover . | . . . . . . . . . . . . . Flight . | . . . . . . . . . . . . . Utility 41 | 3 2 3 8 4 1 4 1 9 3 . 3 . Device 11 | 2 1 1 . 1 1 1 . 3 . . 1 . Storage 5 | 1 1 . 1 1 . . . 1 . . . . Processor 7 | . . . 2 1 . . . 2 2 . . . Hackware . | . . . . . . . . . . . . . Protection 18 | . . 2 5 1 . 3 1 3 1 . 2 . Artifact . | . . . . . . . . . . . . . Weapon 33 | 2 1 2 6 5 . 5 3 2 2 . . 5 Energy Gun 4 | . . 1 . . . . . . . . . 3 Energy Cannon . | . . . . . . . . . . . . . Ballistic Gun 12 | 2 . . 5 3 . . . . 1 . . 1 Ballistic Cannon 8 | . . . . 1 . 1 2 2 1 . . 1 Launcher 4 | . . . 1 . . 3 . . . . . . Special Weapon . | . . . . . . . . . . . . . Impact Weapon 3 | . 1 1 . 1 . . . . . . . . Slashing Weapon 2 | . . . . . . 1 1 . . . . . Piercing Weapon . | . . . . . . . . . . . . . Special Melee Weapon . | . . . . . . . . . . . . . Unidentified Prototypes 2 | . . . . . . 2 . . . . . . Parts Lost 44 | . . 3 1 1 . 1 1 1 11 10 2 13 Power 5 | . . 1 . 1 . . . . 1 1 . 1 Propulsion 13 | . . . 1 . . 1 1 . 5 4 . 1 Utility 13 | . . . . . . . . 1 3 2 . 7 Weapon 13 | . . 2 . . . . . . 2 3 2 4 Highest Loss Streak 11 | . . 3 1 1 . 1 1 1 6 5 2 11 To Critical Strikes 1 | . . . . . . . . . 1 . . . Average Backups 15 | 2 9 14 14 17 19 14 16 19 18 16 14 5 Power . | . . . . . . . . . . . . . Propulsion . | . . . . . . . 1 1 . . . . Utility 12 | . 6 13 13 13 15 9 11 14 14 14 14 5 Weapon 2 | . 1 . 1 2 4 4 3 2 2 2 . . Tool/Special . | . . . . . . . . . . . . . Unused Backups 42 | . 5 1 7 4 . 8 3 6 . . . 8 Power 2 | . 1 . . . . . . 1 . . . . Propulsion 2 | . . . . 1 . . . 1 . . . . Utility 34 | . 2 1 7 3 . 7 2 4 . . . 8 Weapon 4 | . 2 . . . . 1 1 . . . . . Tool/Special . | . . . . . . . . . . . . . Average Slot Usage (%) 88 | . 100 97 96 97 92 70 92 99 94 59 40 38 Engine 2 | . 12 . 2 5 . . 1 . . . . . Core 3 | . 1 9 4 . . 4 4 5 5 . . . Treads 20 | . 28 33 26 22 26 13 19 23 22 3 . . Device 7 | . 14 11 3 7 12 8 13 11 1 . . 3 Storage 6 | . 14 11 9 7 6 4 6 5 5 5 5 1 Processor 14 | . . . 8 14 13 13 13 18 23 29 26 22 Protection 9 | . . 10 14 15 13 4 13 9 12 4 . 6 Ballistic Gun 9 | . 27 17 25 15 13 . . . 1 3 . . Ballistic Cannon 6 | . . . . 2 . 2 12 13 13 2 7 . Slashing Weapon 1 | . . . . . . 2 5 2 1 1 . . Peak Build Rating 76 | 8 10 13 36 45 46 70 67 74 76 68 43 34 Average Rating 44 | 6 8 12 31 41 45 49 65 65 70 40 29 25 On Entrance 34 | . 8 10 11 35 40 46 51 53 73 69 23 34 Naked Turns . | . . . . . . . . . . . . . Heaviest Build 131 | 11 29 32 51 76 67 68 83 125 131 120 98 98 Greatest Support 125 | 40 40 60 62 70 68 70 118 125 125 83 16 16 Greatest Overweight (x) 34 | 2 . . 1 1 1 7 1 4 6 34 31 6 Average Overweight (x) . | . . . . . . . . 2 1 10 12 1 Largest Inventory Capacity 25 | 8 15 15 15 20 20 20 20 25 25 25 25 25 Average Capacity 18 | 7 11 15 15 17 20 16 20 23 25 25 25 9 Most Carried 25 | 8 15 15 15 20 20 20 20 25 25 19 19 16 Average Carried 16 | 2 9 14 14 17 19 16 19 22 21 19 17 7 Final Capacity 25 | 8 15 15 15 20 20 20 20 25 25 25 25 5 Final Carried 25 | 8 15 14 15 20 20 20 20 25 19 19 16 5 Class Distribution -------------------- 59% | Mutant 11% | Skirmisher 10% | Tank 7% | Gunner 3% | Scavenger-Assassin 3% | Assassin Dominant Class ---------------- Mutant | -10/Materials Mutant | -9/Materials Tank | -8/Materials Mutant | -7/Factory Mutant | -6/Factory Mutant | -6/Waste Mutant | -6/Factory Scavenger-Assassin | -5/Factory Tank | -5/Upper Caves Mutant | -5/Upper Caves Mutant | -4/Factory Mutant | -4/Extension Resources | -11 -10 -9 -8 -7 -6 -6 -6 -5 -5 -5 -4 -4 ----------- Run | Yrd Mat Mat Mat Fac Fac Was Fac Fac Upp Upp Fac Ext Matter Collected 4718 | 326 238 219 751 546 . 291 564 866 551 51 232 83 Remotely 203 | 203 . . . . . . . . . . . . Salvage Created 4240 | 161 252 349 899 324 . . 711 783 256 51 218 236 Parts 178 | 16 22 13 37 17 . . 16 33 16 4 2 2 Haulers Intercepted 1 | . 1 . . . . . . . . . . . Recyclers Shooed 6 | . . 2 1 . . . 2 1 . . . . Parts Field Recycled . | . . . . . . . . . . . . . Retrieved Matter . | . . . . . . . . . . . . . Parts Self-Destructed 24 | . . . . . . . . . 15 9 . . Prevented . | . . . . . . . . . . . . . Kills | -11 -10 -9 -8 -7 -6 -6 -6 -5 -5 -5 -4 -4 ------- Run | Yrd Mat Mat Mat Fac Fac Was Fac Fac Upp Upp Fac Ext Combat Hostiles Destroyed 85 | . 6 8 19 8 . . 13 16 11 1 . 3 Melee 1 | . . 1 . . . . . . . . . . Guns 39 | . 6 6 16 7 . . . . 1 1 . 2 Cannons 29 | . . . . 1 . . 11 8 9 . . . AOE 12 | . . . 1 . . . 2 8 1 . . . Classes Destroyed 13 | 2 3 1 2 2 . . 3 . . . . . Worker 1 | . . . . . . . 1 . . . . . Builder 1 | . . . . 1 . . . . . . . . Tunneler 7 | 5 . . . . . . 1 1 . . . . Hauler 1 | . 1 . . . . . . . . . . . Recycler 8 | 1 . . . . . . 2 3 . . 2 . Operator 1 | . . . . . . . 1 . . . . . Watcher 4 | . . . 3 . . . . 1 . . . . Swarmer 20 | . 2 . 2 . . . 2 9 5 . . . Grunt 32 | . 4 7 12 . . . 9 . . . . . Duelist 1 | . . . . . . . 1 . . . . . Sentry 12 | . . 1 3 3 . . 1 1 . . . 3 Hunter 10 | . . . 2 1 . . . 2 5 . . . Programmer 10 | . . . . 4 . . . 4 1 1 . . Best Kill Streak 6 | 2 2 3 6 3 . . 4 5 5 1 1 3 Combat Bots Only 6 | . 2 3 6 3 . . 3 5 5 1 . 3 Max Kills in Single Turn 3 | 1 1 1 1 1 . . 2 3 1 1 1 1 Gunslinging . | . . . . . . . . . . . . . Exploded 3 | . . . 1 . . . 2 3 1 . . . Melee 1 | . . 1 . . . . . . . . . . Uniques/NPCs Destroyed . | . . . . . . . . . . . . . Combat | -11 -10 -9 -8 -7 -6 -6 -6 -5 -5 -5 -4 -4 -------- Run | Yrd Mat Mat Mat Fac Fac Was Fac Fac Upp Upp Fac Ext Hostile Shots Fired 793 | . 48 51 70 142 . 2 117 46 119 64 26 108 Missed 226 | . 14 13 21 50 . 1 36 10 27 16 10 28 Hits 567 | . 34 38 49 92 . 1 81 36 92 48 16 80 Melee 3 | . . . . . . 1 2 . . . . . Projectile 564 | . 34 38 49 92 . . 79 36 92 48 16 80 Critical Strikes 24 | . . 1 2 3 . 1 5 . 3 5 3 1 Part Disruptions 1 | . . . . 1 . . . . . . . . Damage Taken 10055 | . 400 511 693 811 . 72 1236 651 2495 950 326 1910 Core 2072 | . 30 30 74 62 . 57 85 20 315 232 18 1149 Absorbed by Shields . | . . . . . . . . . . . . . Reduced by Siege Mode 22 | . . . . . . . 22 . . . . . Redirected to Shielding 102 | . . . . 6 . . 50 . 46 . . . Ignored by Resistances 205 | . . . 43 142 . . . . . . . 20 Regen/Repaired (Parts) 238 | . . . 102 . . 136 . . . . . . Core Remaining (%) 83 | 100 88 92 86 91 . . 83 . . 43 . . Volleys Fired 288 | 23 34 35 45 27 . 4 38 31 25 2 11 13 Largest 3 | 2 2 2 3 3 . 2 2 3 3 1 1 1 Hottest 135 | 40 40 40 84 96 . 66 84 128 135 28 44 81 Shots Fired 605 | 46 68 64 122 71 . 7 77 59 65 2 11 13 Gun 370 | 46 68 64 117 53 . 1 . . 7 2 . 12 Cannon 216 | . . . . 18 . . 76 53 57 . 11 1 Launcher 19 | . . . 5 . . 6 1 6 1 . . . Special . | . . . . . . . . . . . . . Kinetic 573 | 46 68 63 117 71 . 1 76 53 64 2 11 1 Thermal 13 | . . 1 . . . . . . . . . 12 Explosive 14 | . . . . . . 6 1 6 1 . . . Electromagnetic 5 | . . . 5 . . . . . . . . . Robot Hit Streak 22 | 8 12 14 9 15 . 12 16 17 8 8 9 22 Robot Miss Streak 9 | 5 3 4 9 5 . 1 2 3 3 . 1 . Penetration Max 1 | . . . 1 . . . . . . . . . Secondary Targets 2 | . 1 1 . . . . . . . . . . Max Gunslinging Chain 1 | . 1 1 . . . . . . . . . . Shots Hit Robots 424 | 27 45 51 95 49 . 6 53 36 35 5 9 13 Core Hits 252 | 12 20 21 82 34 . . 28 25 19 1 4 6 Critical Kills 6 | . . 2 . . . . 3 . . 1 . . Critical Parts Destroyed 9 | . . 2 . 1 . . 1 . 5 . . . Critical Strikes 24 | . . 4 . 2 . . 6 3 6 1 . 2 Burn 2 | . . . . . . . . . . . . 2 Destroy 12 | . . 2 . . . . 4 . 5 1 . . Blast 7 | . . . . 1 . . 2 3 1 . . . Smash 3 | . . 2 . 1 . . . . . . . . Melee Attacks 69 | . 5 4 . 11 . . 7 17 20 5 . . Impact 20 | . 5 4 . 11 . . . . . . . . Slashing 49 | . . . . . . . 7 17 20 5 . . Piercing . | . . . . . . . . . . . . . Sneak Attacks 7 | . . . . 1 . . 2 4 . . . . Combat Hostiles . | . . . . . . . . . . . . . Follow-up Attacks . | . . . . . . . . . . . . . Damage Inflicted 10377 | 238 401 493 2024 1223 . 430 2106 1951 804 166 272 269 Guns 3747 | 238 401 399 1549 818 . 22 . . 34 48 . 238 Cannons 3971 | . . . . 319 . . 1683 926 740 . 272 31 Explosions 1800 | . . . 475 . . 408 207 680 30 . . . Melee 859 | . . 94 . 86 . . 216 345 . 118 . . Ramming . | . . . . . . . . . . . . . Kinetic 7480 | 238 401 399 1549 1137 . 22 1683 926 774 48 272 31 Thermal 291 | . . . 53 . . . . . . . . 238 Explosive 1311 | . . . . . . 408 193 680 30 . . . Electromagnetic 436 | . . . 422 . . . 14 . . . . . Impact 180 | . . 94 . 86 . . . . . . . . Slashing 679 | . . . . . . . 216 345 . 118 . . Piercing . | . . . . . . . . . . . . . Highest Corruption 26 | . . . . 6 . 3 6 2 18 26 . . Average Corruption 6 | . . . . 3 . 3 4 1 13 21 . . Corruption Purged . | . . . . . . . . . . . . . Corruption Blocked . | . . . . . . . . . . . . . Effects 95 | . . . . 16 . 2 28 2 40 7 . . Message Errors 16 | . . . . 4 . 1 4 . 7 . . . Matter Fused 31 | . . . . 3 . . 7 . 19 2 . . Heat Flow Errors 12 | . . . . 2 . . 4 1 4 1 . . Energy Discharges 8 | . . . . 2 . . 4 . 1 1 . . Parts Rejected 1 | . . . . . . . . . . 1 . . Parts Fused 2 | . . . . . . 1 1 . . . . . Data Loss (minor) 9 | . . . . 2 . . 4 1 2 . . . Data Loss (major) 1 | . . . . . . . 1 . . . . . Misfires 7 | . . . . 1 . . 2 . 4 . . . Alerts 5 | . . . . . . . 1 . 2 2 . . Weapon Failures 3 | . . . . 2 . . . . 1 . . . Overload Shots . | . . . . . . . . . . . . . Overflow Damage 644 | . . 59 . 119 . . 147 249 21 20 29 . Projectiles 174 | . . . . 33 . . 83 8 21 . 29 . Explosions 49 | . . . . . . . . 49 . . . . Melee 421 | . . 59 . 86 . . 64 192 . 20 . . Knockbacks 27 | . . . . 3 . . 11 4 4 . 5 . Impact . | . . . . . . . . . . . . . Kinetic 26 | . . . . 3 . . 11 3 4 . 5 . Secondary 1 | . . . . . . . . 1 . . . . Self-Inflicted Damage 134 | . . . . . . . 87 47 . . . . Shots 6 | . . . . . . . 4 2 . . . . Rammed . | . . . . . . . . . . . . . Targets Rammed . | . . . . . . . . . . . . . Kicked . | . . . . . . . . . . . . . Crushed . | . . . . . . . . . . . . . Highest Temperature 288 | . 18 35 263 172 . . 288 234 234 75 . 39 Average Temperature 71 | . 7 15 84 44 . . 102 77 72 55 . 14 Received Heat Transfer 1647 | . 150 279 342 78 . . 396 27 . . . 375 Effects 2 | . . . 1 . . . . 1 . . . . Energy Bleed 2 | . . . 1 . . . . 1 . . . . Siege Activations 3 | . . . . . . . 3 . . . . . Total Turns 44 | . . . . . . . 44 . . . . . Longest Duration 19 | . . . . . . . 19 . . . . . Martial Activations . | . . . . . . . . . . . . . Shielding Activations . | . . . . . . . . . . . . . Robots Disrupted . | . . . . . . . . . . . . . Combat Hostiles . | . . . . . . . . . . . . . Robots Corrupted 3 | . . 1 2 . . . . . . . . . Combat Hostiles 3 | . . 1 2 . . . . . . . . . Parts Fried 3 | . . 1 1 1 . . . . . . . . Impact Corruptions 5 | . . 2 . 3 . . . . . . . . Robots Melted 1 | . . . . . . . . . . . . 1 Combat Hostiles 1 | . . . . . . . . . . . . 1 Parts Melted 7 | . . . . . . . . . . . . 7 Heat Transferred 692 | . . . 100 . . . . . . . . 592 Parts Sabotaged . | . . . . . . . . . . . . . Parts Stolen . | . . . . . . . . . . . . . Parts Stripped . | . . . . . . . . . . . . . Power Chain Reactions 1 | . . . 1 . . . . . . . . . Alert | -11 -10 -9 -8 -7 -6 -6 -6 -5 -5 -5 -4 -4 ------- Run | Yrd Mat Mat Mat Fac Fac Was Fac Fac Upp Upp Fac Ext Maximum Alert Level 3 | . . . 1 . . . 3 2 . . . . Low Security (%) 67 | 100 100 100 75 100 100 100 21 . . . 100 100 Level 1 8 | . . . 24 . . . 8 25 . . . . Level 2 13 | . . . . . . . 8 74 . . . . Level 3 10 | . . . . . . . 61 . . . . . Level 4 . | . . . . . . . . . . . . . Level 5 . | . . . . . . . . . . . . . High Security . | . . . . . . . . . . . . . Max Security . | . . . . . . . . . . . . . Peak Influence 1060 | 5 50 90 364 157 22 22 1060 635 . . 5 85 Initial 506 | . 3 . 26 153 22 . . 506 . . . . Average 207 | 1 10 31 102 47 6 . 638 477 . . . 13 Influence Increases 4107 | 30 166 251 582 287 . 53 1638 611 295 30 14 150 Destroy 0b10 Robot/C 2100 | . 120 160 380 160 . . 660 320 220 20 . 60 Destroy 0b10 Robot/NC 115 | 30 5 . 15 5 . . 25 25 . . 10 . Destroy Leader 480 | . 32 40 106 80 . . 120 52 30 10 . 10 Allied During Kill 397 | . . . . . . . 397 . . . . . Successful Hack 47 | . 7 5 4 26 . . . . . . . 5 Disable Machine 315 | . . . 60 . . . 195 60 . . . . Anti-Garrison Action 150 | . . . . . . . 150 . . . . . Destroy Structure 278 | . 2 1 2 16 . 53 46 154 . . 4 . Partial Spotted 15 | . . . . . . . . . . . . 15 Lose Combat Pursuer 210 | . . 45 15 . . . 45 . 45 . . 60 Influence Decreases 4052 | 25 170 190 307 577 47 53 604 1036 758 176 14 95 Entered New Map 1031 | . 2 1 36 184 25 . . 528 226 29 . . Time Decay 2544 | 25 168 167 261 383 22 30 444 498 422 60 14 50 Lost Part 309 | . . 22 10 10 . 10 10 10 110 87 . 40 Lost Ally 163 | . . . . . . 13 150 . . . . . Purge Threat 5 | . . . . . . . . . . . . 5 Squads Dispatched 31 | . 2 2 4 6 . . 12 3 . . 1 1 Investigation 6 | . 1 1 3 . . . 1 . . . . . Extermination 6 | . . . . 2 . . 1 2 . . 1 . Reinforcement 9 | . 1 1 1 1 . . 3 1 . . . 1 Assault 4 | . . . . . . . 4 . . . . . Garrison 6 | . . . . 3 . . 3 . . . . . Intercept . | . . . . . . . . . . . . . Searches Triggered . | . . . . . . . . . . . . . Construction Impeded 1 | . . . . . . . . 1 . . . . Haulers Reinforced . | . . . . . . . . . . . . . Active Scanning Responses . | . . . . . . . . . . . . . Cargo Convoy Interrupts . | . . . . . . . . . . . . . Stealth | -11 -10 -9 -8 -7 -6 -6 -6 -5 -5 -5 -4 -4 --------- Run | Yrd Mat Mat Mat Fac Fac Was Fac Fac Upp Upp Fac Ext Distress Signals 6 | . . . 2 . . . 2 1 . . . 1 Communications Jammed . | . . . . . . . . . . . . . Distress Signals . | . . . . . . . . . . . . . Times Spotted 155 | . 16 10 27 9 . 6 32 21 14 2 4 14 Peak Tracking Total 6 | . 3 3 5 3 . 5 4 6 5 1 2 5 Tactical Retreats 8 | . . 2 1 . . . 3 . 1 . . 1 Traps | -11 -10 -9 -8 -7 -6 -6 -6 -5 -5 -5 -4 -4 ------- Run | Yrd Mat Mat Mat Fac Fac Was Fac Fac Upp Upp Fac Ext Traps Triggered 12 | . 3 1 2 2 1 . 2 . . . . 1 Indirectly . | . . . . . . . . . . . . . Trap Hack Attempts . | . . . . . . . . . . . . . Triggered . | . . . . . . . . . . . . . Disarmed . | . . . . . . . . . . . . . Reprogrammed . | . . . . . . . . . . . . . Reused . | . . . . . . . . . . . . . Traps Extracted . | . . . . . . . . . . . . . Installed . | . . . . . . . . . . . . . Triggered . | . . . . . . . . . . . . . Machines | -11 -10 -9 -8 -7 -6 -6 -6 -5 -5 -5 -4 -4 ---------- Run | Yrd Mat Mat Mat Fac Fac Was Fac Fac Upp Upp Fac Ext Machines Disabled 22 | . . . 4 . . . 14 4 . . . . Max in Single Turn 3 | . . . 1 . . . 3 1 . . . . Garrison Access 2 | . . . . . 1 . 1 . . . . . Machines Repaired . | . . . . . . . . . . . . . Machines Dismantled . | . . . . . . . . . . . . . Machines Sabotaged . | . . . . . . . . . . . . . Overloaded Fab Kills . | . . . . . . . . . . . . . Hacking | -11 -10 -9 -8 -7 -6 -6 -6 -5 -5 -5 -4 -4 --------- Run | Yrd Mat Mat Mat Fac Fac Was Fac Fac Upp Upp Fac Ext Machines Accessed 36 | . 6 3 8 7 1 . 5 4 . . 1 1 Terminals 25 | . 6 3 6 4 . . 4 1 . . . 1 Fabricators . | . . . . . . . . . . . . . Repair Stations 1 | . . . 1 . . . . . . . . . Recycling Units 5 | . . . 1 1 . . . 2 . . 1 . Scanalyzers . | . . . . . . . . . . . . . Garrison Access 5 | . . . . 2 1 . 1 1 . . . . Total Hacks 78 | . 14 8 22 11 1 . 8 9 . . 1 4 Successful 28 | . 3 3 10 3 1 . 1 4 . . 1 2 Failed 50 | . 11 5 12 8 . . 7 5 . . . 2 Catastrophic 13 | . 2 1 4 2 . . 3 . . . . 1 Database Lockouts . | . . . . . . . . . . . . . Manual 47 | . 13 6 15 3 . . 5 1 . . . 4 Terminals 59 | . 14 8 16 7 . . 7 3 . . . 4 Fabricators . | . . . . . . . . . . . . . Repair Stations 5 | . . . 5 . . . . . . . . . Recycling Units 8 | . . . 1 1 . . . 5 . . 1 . Scanalyzers . | . . . . . . . . . . . . . Garrison Access 6 | . . . . 3 1 . 1 1 . . . . Terminal Hacks 10 | . 2 1 3 1 . . 1 1 . . . 1 Alert Level 3 | . . . 1 . . . 1 1 . . . . Unreport Threat 2 | . 1 . . . . . . . . . . 1 Locate Traps 1 | . . . . 1 . . . . . . . . Maintenance Status 1 | . . 1 . . . . . . . . . . Recall Investigation 1 | . . . 1 . . . . . . . . . Hauler Manifests 2 | . 1 . 1 . . . . . . . . . Fabricator Hacks . | . . . . . . . . . . . . . Repair Station Hacks 4 | . . . 4 . . . . . . . . . Scan Component 2 | . . . 2 . . . . . . . . . Repair 2 | . . . 2 . . . . . . . . . Recycling Unit Hacks 6 | . . . 1 1 . . . 3 . . 1 . Report Inventory 5 | . . . 1 1 . . . 2 . . 1 . Retrieve Components 1 | . . . . . . . . 1 . . . . Scanalyzer . | . . . . . . . . . . . . . Garrison Access Hacks 1 | . . . . . 1 . . . . . . . Seal Access 1 | . . . . . 1 . . . . . . . Unauthorized Hacks 7 | . 1 2 2 1 . . . . . . . 1 Terminals 7 | . 1 2 2 1 . . . . . . . 1 Botnet 6 | . 1 1 2 1 . . . . . . . 1 Operators 1 | . . 1 . . . . . . . . . . Fabricators . | . . . . . . . . . . . . . Repair Stations . | . . . . . . . . . . . . . Recycling Units . | . . . . . . . . . . . . . Scanalyzers . | . . . . . . . . . . . . . Garrison Access . | . . . . . . . . . . . . . Data Cores Recovered . | . . . . . . . . . . . . . Used . | . . . . . . . . . . . . . Hacking Detections 32 | . 6 3 7 6 . . 5 3 . . 1 1 Full Trace Events 3 | . . . 2 . . . 1 . . . . . Feedback Events . | . . . . . . . . . . . . . Feedback Blocked . | . . . . . . . . . . . . . Robot Schematics Acquired . | . . . . . . . . . . . . . Robots Built . | . . . . . . . . . . . . . Authchips . | . . . . . . . . . . . . . Time . | . . . . . . . . . . . . . Total Robot Build Rating . | . . . . . . . . . . . . . Part Schematics Acquired . | . . . . . . . . . . . . . Parts Built . | . . . . . . . . . . . . . Authchips . | . . . . . . . . . . . . . Time . | . . . . . . . . . . . . . Total Part Build Rating . | . . . . . . . . . . . . . Parts Repaired 2 | . . . 2 . . . . . . . . . Time 76 | . . . 76 . . . . . . . . . Parts Recycled . | . . . . . . . . . . . . . Recycled Matter . | . . . . . . . . . . . . . Retrieved Matter . | . . . . . . . . . . . . . Retrieved Components 3 | . . . . . . . . 3 . . . . Parts Scanalyzed . | . . . . . . . . . . . . . Part Schematics Acquired . | . . . . . . . . . . . . . Parts Damaged . | . . . . . . . . . . . . . Bothacking | -11 -10 -9 -8 -7 -6 -6 -6 -5 -5 -5 -4 -4 ------------ Run | Yrd Mat Mat Mat Fac Fac Was Fac Fac Upp Upp Fac Ext Used RIF Installer . | . . . . . . . . . . . . . Robots Hacked . | . . . . . . . . . . . . . Non-combat . | . . . . . . . . . . . . . Combat . | . . . . . . . . . . . . . Robot Hacks Applied . | . . . . . . . . . . . . . Relay Couplers Released 4 | . . . . 3 . . 1 . . . . . Machine Destruction 1 | . . . . . . . 1 . . . . . Programmers 3 | . . . . 3 . . . . . . . . Fabnet Peak Effective % . | . . . . . . . . . . . . . Robots Rewired 2 | . . . . . . . . . . . . 2 Allies Hacked . | . . . . . . . . . . . . . Hacks Repelled . | . . . . . . . . . . . . . Allies | -11 -10 -9 -8 -7 -6 -6 -6 -5 -5 -5 -4 -4 -------- Run | Yrd Mat Mat Mat Fac Fac Was Fac Fac Upp Upp Fac Ext Total Allies 21 | . . . . . . 19 . . . . . 2 Largest Group 19 | . . . . . . 19 11 . . . . 1 Highest-Rated Group 702 | . . . . . . 702 445 . . . . 46 Highest-Rated Ally 50 | . . . . . . 50 46 . . . . 46 Total Orders . | . . . . . . . . . . . . . Ally Attacks 265 | . . . . . . 104 153 . . . . 8 Total Damage 9998 | . . . . . . 5896 3803 . . . . 299 Kills 32 | . . . . . . 11 21 . . . . . Allies Corrupted . | . . . . . . . . . . . . . Allies Melted . | . . . . . . . . . . . . . Intel | -11 -10 -9 -8 -7 -6 -6 -6 -5 -5 -5 -4 -4 ------- Run | Yrd Mat Mat Mat Fac Fac Was Fac Fac Upp Upp Fac Ext Active Infowar (turns) 8704 | 81 870 487 354 1337 105 681 1402 1334 1023 185 517 328 Optics 3384 | . . . . . . . . 1331 1023 185 517 328 Sensors 5133 | . . . . 1337 105 681 1402 1334 274 . . . Terrain 39 | . . . . . . . . 39 . . . . Seismic 1792 | 81 870 487 354 . . . . . . . . . Jamming 58 | . . . . . . . . 53 . . . 5 Robot Analysis Total . | . . . . . . . . . . . . . Derelict Logs Recovered 1 | . . . . . . . . . 1 . . . Drone Launches . | . . . . . . . . . . . . . Drone Recoveries . | . . . . . . . . . . . . . Exploration | -11 -10 -9 -8 -7 -6 -6 -6 -5 -5 -5 -4 -4 ------------- Run | Yrd Mat Mat Mat Fac Fac Was Fac Fac Upp Upp Fac Ext Turns Passed 9541 | 239 871 487 1032 1337 105 681 1402 1334 1023 185 517 328 Spaces Moved 4312 | 103 432 201 488 581 45 376 688 687 368 25 85 233 Core 185 | 7 . . . . . 50 . . . 7 25 96 Treads 3436 | 96 432 201 488 581 45 315 688 244 328 18 . . Legs 40 | . . . . . . . . . 40 . . . Wheels 640 | . . . . . . . . 443 . . 60 137 Hover 11 | . . . . . . 11 . . . . . . Flight . | . . . . . . . . . . . . . Fastest Speed 50 | 50 160 160 155 153 160 50 160 120 162 243 175 50 Average Speed 179 | 156 160 160 159 190 229 150 169 155 236 687 573 102 Slowest Speed 1750 | 160 160 160 245 240 240 660 245 164 540 1750 1600 350 Overloaded Moves . | . . . . . . . . . . . . . Propulsion Burnouts . | . . . . . . . . . . . . . Robots Hopped . | . . . . . . . . . . . . . Potential Cave-ins 20 | . . . . . . . 2 2 16 . . . Cave-ins Triggered 3 | . . . . . . . . . 3 . . . Exploration Rate (%) 29 | 6 64 23 46 20 2 95 24 18 49 11 3 27 Regions Visited 12 Branch Regions 3 Pre-discovered Areas . | . . . . . . . . . . . . . Known Exits Taken 6 | . . . . 1 . . 1 1 1 1 1 . Unknown Exits Taken 4 | 1 1 1 1 . . . . . . . . . Scrap Searched . | . . . . . . . . . . . . . Spaces Dug 57 | . 2 1 . 10 . . 3 20 20 . 1 . Terrain Destroyed 253 | . 2 1 2 17 . 38 43 97 51 . 2 . Melee 48 | . 2 1 . 9 . . 3 13 20 . . . Projectile 63 | . . . 1 8 . . 16 20 16 . 2 . AOE 142 | . . . 1 . . 38 24 64 15 . . . Terrain Rammed . | . . . . . . . . . . . . . Walls Destroyed . | . . . . . . . . . . . . . Machines Disabled . | . . . . . . . . . . . . . Actions | -11 -10 -9 -8 -7 -6 -6 -6 -5 -5 -5 -4 -4 --------- Run | Yrd Mat Mat Mat Fac Fac Was Fac Fac Upp Upp Fac Ext Total 5539 | 141 554 310 653 735 49 496 843 872 434 40 104 308 Wait 453 | . 49 54 68 58 . 55 80 61 1 7 1 19 Move 4299 | 102 431 200 487 580 45 375 687 686 365 24 84 233 Hop . | . . . . . . . . . . . . . Pick Up 115 | 7 16 6 12 16 2 20 9 23 2 . 2 . Fast Attach 52 | 8 . 1 9 9 . 6 4 3 3 1 1 7 Attach 37 | . 2 4 2 2 2 4 3 6 7 . 5 . Detach 8 | 1 . . 1 . . 5 . 1 . . . . Swap 77 | . 5 2 11 15 . 4 4 26 8 1 . 1 Drop 107 | . 12 4 18 17 . 23 11 18 1 . . 3 Fire 288 | 23 34 35 45 27 . 4 38 31 25 2 11 13 Melee 69 | . 5 4 . 11 . . 7 17 20 5 . . Ram . | . . . . . . . . . . . . . Kick . | . . . . . . . . . . . . . Crush . | . . . . . . . . . . . . . Escape Stasis 17 | . . . . . . . . . 2 . . 15 Rewire 17 | . . . . . . . . . . . . 17 Trap . | . . . . . . . . . . . . . Miscellaneous . | . . . . . . . . . . . . . Route ------- -11/Scrapyard -10/Materials (discovered 4 exits: *Mat x3 / [*Min]) -9/Materials -8/Materials (discovered 3 exits: *Fac / [*Sto x2]) -7/Factory -6/Factory -6/Waste -6/Factory -5/Factory -5/Upper Caves -5/Upper Caves -4/Factory -4/Extension History --------- Turn | Location | Event 11 | -11/Scrapyard | Discovered new exit (range 16) 240 | -11/Scrapyard | Entered Materials 322 | -10/Materials | Build established: Mutant 380 | -10/Materials | Discovered new exit (range 7) 612 | -10/Materials | Discovered new exit (range 8) 855 | -10/Materials | Discovered new exit (range 10) 1106 | -10/Materials | Discovered new exit (range 2) 1111 | -10/Materials | Entered another Materials area 1111 | -9/Materials | Evolved 2 slots: Propulsion x1, Utility x1 1563 | -9/Materials | Lost 3 parts (1p2w) 1569 | -9/Materials | Discovered new exit (range 12) 1598 | -9/Materials | Entered another Materials area 1598 | -8/Materials | Evolved 2 slots: Utility x1, Weapon x1 1786 | -8/Materials | Discovered new exit (range 10) 1913 | -8/Materials | Build established: Gunner 2078 | -8/Materials | Discovered new exit (range 16) 2216 | -8/Materials | Build established: Tank 2352 | -8/Materials | Repaired Lgt. Nuclear Core? 2457 | -8/Materials | Repaired Adv. Treads 2590 | -8/Materials | Discovered new exit (range 16) 2630 | -8/Materials | Entered Factory 2630 | -7/Factory | Evolved 2 slots: Utility x2 3076 | -7/Factory | Build established: Mutant 3469 | -7/Factory | Garrison activated, responded to threat 3758 | -7/Factory | Build established: Skirmisher 3886 | -7/Factory | Discovered new exit (range 5) 3893 | -7/Factory | Identified exit to Factory 3967 | -7/Factory | Entered another Factory area 3967 | -6/Factory | Evolved 2 slots: Propulsion x1, Utility x1 4005 | -6/Factory | Discovered new exit (range 10) 4027 | -6/Factory | Identified exit to Factory 4072 | -6/Factory | Sucked down chute 4072 | -6/Factory | Entered Waste 4110 | -6/Waste | Spotted C-40 Crusher 4123 | -6/Waste | Spotted C-40 Crusher 4131 | -6/Waste | Crushed by Compactor (1 part destroyed, 2 dropped) 4135 | -6/Waste | Spotted C-40 Crusher 4137 | -6/Waste | Spotted C-40 Crusher 4139 | -6/Waste | Spotted C-40 Crusher 4160 | -6/Waste | Warlord forces began an assault 4174 | -6/Waste | Allies destroyed C-40 Crusher 4176 | -6/Waste | Allies destroyed C-40 Crusher 4181 | -6/Waste | Allies destroyed C-40 Crusher 4187 | -6/Waste | Allies destroyed C-40 Crusher 4189 | -6/Waste | Allies destroyed C-40 Crusher 4205 | -6/Waste | Found Damper Plating 4216 | -6/Waste | Lost 6 allies 4218 | -6/Waste | Spotted C-40 Crusher 4238 | -6/Waste | Allies destroyed C-40 Crusher 4383 | -6/Waste | Discovered new exit (range 15) 4427 | -6/Waste | Build established: Mutant 4736 | -6/Waste | Identified exit to Factory 4753 | -6/Waste | Entered Factory 4753 | -6/Factory | Accompanied by 11 allies 4926 | -6/Factory | Garrison activated, responded to threat 5175 | -6/Factory | P-60 Hacker assimilated allied 8S-GTQ(g) 5622 | -6/Factory | Lost 3 allies 5803 | -6/Factory | First assault squad dispatched 6127 | -6/Factory | Discovered exit to Factory (range 15) 6155 | -6/Factory | Entered another Factory area 6155 | -5/Factory | Evolved 2 slots: Propulsion x1, Utility x1 7378 | -5/Factory | Build established: Gunner 7401 | -5/Factory | Discovered new exit (range 12) 7421 | -5/Factory | Identified exit to Upper Caves 7489 | -5/Factory | Entered Upper Caves 7696 | -5/Upper Caves | Build established: Skirmisher 7733 | -5/Upper Caves | Crushed by falling debris 7763 | -5/Upper Caves | Crushed by falling debris 7764 | -5/Upper Caves | System corruption reached 10% 7772 | -5/Upper Caves | Crushed by falling debris 7803 | -5/Upper Caves | Lost 6 parts (1p2n3u) 7913 | -5/Upper Caves | Ambushed by research squad 8209 | -5/Upper Caves | Build established: Tank 8223 | -5/Upper Caves | Learned Factory terminal intel 8327 | -5/Upper Caves | Lost 3 parts (3n) 8483 | -5/Upper Caves | Discovered new exit (range 13) 8510 | -5/Upper Caves | Identified exit to Upper Caves 8512 | -5/Upper Caves | Entered another Upper Caves area 8519 | -5/Upper Caves | Discovered new exit (range 20) 8580 | -5/Upper Caves | Lost 5 parts (1p2n1u1w) 8684 | -5/Upper Caves | Identified exit to Factory 8685 | -5/Upper Caves | Core integrity fell below 50% 8695 | -5/Upper Caves | Lost 4 parts (1n1u2w) 8697 | -5/Upper Caves | Entered Factory 8697 | -4/Factory | Evolved 2 slots: Propulsion x1, Utility x1 8698 | -4/Factory | Loaded intel: 27 terminal locations 8846 | -4/Factory | Build established: Mutant 9207 | -4/Factory | Discovered new exit (range 4) 9213 | -4/Factory | Identified exit to Extension 9214 | -4/Factory | Entered Extension 9452 | -4/Extension | Core integrity fell below 50% 9490 | -4/Extension | Lost 11 parts (1p1n5u4w) 9523 | -4/Extension | Core integrity fell below 20% 9542 | -4/Extension | Destroyed by Y-64 Sentinel with KE Penetrator Last Messages --------------- 09517_ Field strength at 22. 09518_ Field strength at 16. 09519_ Field strength at 10. 09520_ Field strength at 4. 09521_ Stasis field depleted. 09525_ Penetrated by Slug. 09528_ O-24 Administrator: "IFF HANDSHAKE FAILED. SECURING TERMINAL." 09531_ O-24 Administrator uses terminal to summon reinforcements. 09531_ ALERT: Hostiles spotted, dispatching reinforcements to Terminal E002. 09531_ O-24 Administrator locks terminal. 09532_ W-44 Eye sends out distress signal. 09535_ Penetrated by Slug. 09537_ Adv. Targeting Computer destroyed. 09537_ Penetrated by Slug. 09540_ Slug penetrates Wall. 09541_ Core Analyzer destroyed. 09541_ Penetrated by Slug. Map ----- +----------------------------------------------------+ | | | | | | | | | | | | | | | | | | | | | | | | | | | | | | | | | | | | | | | | | | | ?????????????????????????????????????????????????? | | ?????????????????????????????????????????????????? | | #????????????????????????????????????????????????? | | ####################################?????????????? | | ^ # = Y @Y w "???????????? | | ^ #= =# ####### ##### #?????????????? | | # # #????????????????????????????? | | ## # # #????????????????????????????? | | ## # [ # #????????????????????????????? | | ?# + # #????????????????????????????? | | ?# ##/##### #????????????????????????????? | | ?# #????????????????????????????? | | ?##/######### " " #????????????????????????????? | | ?? ???????# "T" #????????????????????????????? | | ?? ???????#! """ #????????????????????????????? | | ?// ??????# #????????????????????????????? | | ?/ ?????? #????????????????????????????? | | ????##########????????????????????????????? | | ??????????????????????????????????????????? | | #?????????????????????????????????????????? | | ########?????????????????????????????????????????? | | ?????????????????????????????????????????????????? | | ?????????????????????????????????????????????????? | | ?????????????????????????????????????????????????? | | ?????????????????????????????????????????????????? | | ?????????????????????????????????????????????????? | | ?????????????????????????????????????????????????? | | ?????????????????????????????????????????????????? | | ?????????????????????????????????????????????????? | +----------------------------------------------------+ Best States ------------- Heat Dissipation 43 Energy Generation 19 Energy Capacity 315 Matter Stores 300 Matter Capacity 300 Sight Range 20 Robot Scan Range 15 Terrain Scan Range 16 Terrain Scan Density 10 Jamming Range 12 Armor Coverage 1600 Resistance: KI 20 Resistance: EM 90 Utility Shielding 66 Evasion (%) 50 Targeting Accuracy 16 Core Analysis 6 Recoil Reduction 5 Kinecelleration 30 Item Schematics ----------------- None Robot Schematics ------------------ None Fabricated ------------ Nothing Repaired ---------- Lgt. Nuclear Core | 38% | -8/Materials Adv. Treads | 58% | -8/Materials Alien Tech Used ----------------- None Achievements -------------- None Challenges ------------ None Game ------ Seed ReactiveOvertunedChronowheel Manual? 0 Play Time 02:23:59 Cumulative 202.6 hours Start 2025.05.17 @ 14:29:26 End 2025.05.17 @ 21:04:01 Sessions 3 Manual Loads 0 Difficulty Rogue Special Mode None Game No. 123 Rogue 123 Adventurer 0 Explorer 0 Win Type - Total 1 Types 1/0/0/0/0/0/0/0/0/0 Lore% 30 Gallery% 50 Achievement% 40 Wizard Run 0 Options --------- Layout 2 ASCII 0 Keyboard 0 Movement Mouse Keybinds 0 Fullscreen 1 Font 24/Smallcaps Map View 50x44 Zoom Use 0% Tactical HUD 1 Map Filters NONE Filters NONE Steam 1 RUN: c57005e0-5e0d-449c-a030-ea486ec0f6e7